[Event "Titled Tuesday Blitz May 23 Late 2023"]
[White "ArrestingPieces"]
[Black "Domingo Nunez, Ruben"]
[BlackFideId "22245570"]
[WhiteElo "2513"]
[BlackElo "2404"]
[Result "1-0"]
[Round "10"]
[TimeControl "180+2"]
[Date "2023.05.23"]
[WhiteClock "0:01:24"]
[BlackClock "0:00:16"]

1. d4 {[%clk 0:03:00]}  g6 {[%clk 0:02:57]} 2. e4 {[%clk 0:03:00]}  Bg7 {[%clk 0:02:58]} 3. Nf3 {[%clk 0:03:01]}  c6 {[%clk 0:02:58]} 4. c4 {[%clk 0:02:59]}  d5 {[%clk 0:02:59]} 5. exd5 {[%clk 0:02:59]}  cxd5 {[%clk 0:03:00]} 6. Nc3 {[%clk 0:02:59]}  Nf6 {[%clk 0:03:01]} 7. Qb3 {[%clk 0:02:58]}  O-O {[%clk 0:03:01]} 8. cxd5 {[%clk 0:02:59]}  Nbd7 {[%clk 0:03:00]} 9. Be2 {[%clk 0:02:53]}  Nb6 {[%clk 0:03:01]} 10. O-O {[%clk 0:02:53]}  Nbxd5 {[%clk 0:02:58]} 11. Re1 {[%clk 0:02:51]}  b6 {[%clk 0:02:40]} 12. Ne5 {[%clk 0:02:51]}  Bb7 {[%clk 0:02:40]} 13. Bf3 {[%clk 0:02:49]}  e6 {[%clk 0:02:41]} 14. Bg5 {[%clk 0:02:41]}  Qb8 {[%clk 0:02:05]} 15. Nxd5 {[%clk 0:02:32]}  Nxd5 {[%clk 0:01:49]} 16. Nd7 {[%clk 0:02:29]}  Qd6 {[%clk 0:01:49]} 17. Nxf8 {[%clk 0:02:29]}  Rxf8 {[%clk 0:01:50]} 18. Red1 {[%clk 0:02:13]}  h6 {[%clk 0:01:48]} 19. Bh4 {[%clk 0:02:12]}  Qd7 {[%clk 0:01:41]} 20. Bg3 {[%clk 0:02:08]}  Bc6 {[%clk 0:01:41]} 21. a4 {[%clk 0:02:07]}  h5 {[%clk 0:01:24]} 22. h3 {[%clk 0:02:03]}  Bf6 {[%clk 0:01:23]} 23. a5 {[%clk 0:02:02]}  h4 {[%clk 0:01:15]} 24. Be5 {[%clk 0:02:02]}  Bg5 {[%clk 0:01:15]} 25. axb6 {[%clk 0:02:01]}  axb6 {[%clk 0:01:15]} 26. Bxd5 {[%clk 0:01:47]}  Bxd5 {[%clk 0:01:12]} 27. Qxb6 {[%clk 0:01:47]}  Rc8 {[%clk 0:01:09]} 28. Ra7 {[%clk 0:01:46]}  Qe8 {[%clk 0:01:09]} 29. Rc7 {[%clk 0:01:26]}  Rb8 {[%clk 0:01:09]} 30. Qd6 {[%clk 0:01:25]}  Rxb2 {[%clk 0:01:02]} 31. Qd7 {[%clk 0:01:24]}  Qxd7 {[%clk 0:00:34]} 32. Rxd7 {[%clk 0:01:25]}  Rd2 {[%clk 0:00:20]} 33. Rxd2 {[%clk 0:01:23]}  Bxd2 {[%clk 0:00:16]} 34. Rd8+ {[%clk 0:01:24]} 1-0


[Site "https://www.chess.com"]

[Event "Titled Tuesday Blitz May 23 Late 2023"]
[White "HamedWafa4"]
[Black "Naroditsky, Daniel"]
[BlackFideId "2026961"]
[WhiteElo "2639"]
[BlackElo "2633"]
[Result "0-1"]
[Round "10"]
[TimeControl "180+2"]
[Date "2023.05.23"]
[WhiteClock "0:00:00"]
[BlackClock "0:01:54"]

1. e4 {[%clk 0:03:00]}  c5 {[%clk 0:03:00]} 2. Nf3 {[%clk 0:02:59]}  d6 {[%clk 0:03:00]} 3. Bb5+ {[%clk 0:02:57]}  Nd7 {[%clk 0:03:00]} 4. c4 {[%clk 0:02:56]}  Nf6 {[%clk 0:03:00]} 5. O-O {[%clk 0:02:55]}  e6 {[%clk 0:03:01]} 6. d4 {[%clk 0:02:54]}  cxd4 {[%clk 0:03:02]} 7. Qxd4 {[%clk 0:02:53]}  Be7 {[%clk 0:03:01]} 8. Nc3 {[%clk 0:02:53]}  O-O {[%clk 0:03:01]} 9. Bxd7 {[%clk 0:02:53]}  Bxd7 {[%clk 0:03:02]} 10. b3 {[%clk 0:02:52]}  Bc6 {[%clk 0:03:02]} 11. Bb2 {[%clk 0:02:51]}  a6 {[%clk 0:03:01]} 12. a4 {[%clk 0:02:50]}  Qa5 {[%clk 0:03:01]} 13. Ba3 {[%clk 0:02:36]}  Rad8 {[%clk 0:02:57]} 14. Bb4 {[%clk 0:02:31]}  Qh5 {[%clk 0:02:57]} 15. h3 {[%clk 0:02:26]}  Qg6 {[%clk 0:02:53]} 16. Rfe1 {[%clk 0:02:20]}  Nh5 {[%clk 0:02:53]} 17. Qd2 {[%clk 0:02:14]}  e5 {[%clk 0:02:52]} 18. Kh1 {[%clk 0:01:46]}  Nf4 {[%clk 0:02:50]} 19. Rg1 {[%clk 0:01:44]}  f5 {[%clk 0:02:50]} 20. Qe3 {[%clk 0:01:30]}  fxe4 {[%clk 0:02:48]} 21. Nxe5 {[%clk 0:01:30]}  dxe5 {[%clk 0:02:39]} 22. Bxe7 {[%clk 0:01:31]}  Rd3 {[%clk 0:02:39]} 23. Bxf8 {[%clk 0:01:11]}  Rxe3 {[%clk 0:02:37]} 24. fxe3 {[%clk 0:01:11]}  Nd3 {[%clk 0:02:30]} 25. Rgf1 {[%clk 0:01:04]}  Qg3 {[%clk 0:02:27]} 26. Bd6 {[%clk 0:00:55]}  h5 {[%clk 0:02:22]} 27. Nd1 {[%clk 0:00:41]}  Bd7 {[%clk 0:02:23]} 28. Ra2 {[%clk 0:00:40]}  Kh7 {[%clk 0:02:11]} 29. Re2 {[%clk 0:00:34]}  h4 {[%clk 0:02:08]} 30. Nf2 {[%clk 0:00:27]}  Bf5 {[%clk 0:02:03]} 31. Ra2 {[%clk 0:00:09]}  Bg6 {[%clk 0:01:58]} 32. Re2 {[%clk 0:00:05]}  Bh5 {[%clk 0:01:54]} 33. Ra2 {[%clk 0:00:03]}  Qxe3 {[%clk 0:01:54]} 34. Nxd3 {[%clk 0:00:02]}  exd3 {[%clk 0:01:55]} 35. Raa1 {[%clk 0:00:02]}  d2 {[%clk 0:01:56]} 36. c5 {[%clk 0:00:02]}  Be2 {[%clk 0:01:54]} 37. Rg1 {[%clk 0:00:02]}  Qg3 {[%clk 0:01:54]} 38. b4 {[%clk 0:00:00]}  Bf3 {[%clk 0:01:54]} 0-1


[Site "https://www.chess.com"]

[Event "Titled Tuesday Blitz May 23 Late 2023"]
[White "Fernandez Guillen, Ernesto J."]
[Black "Machidon, Cristi"]
[WhiteFideId "3512428"]
[BlackFideId "13904590"]
[WhiteElo "2429"]
[BlackElo "2355"]
[Result "1-0"]
[Round "10"]
[TimeControl "180+2"]
[Date "2023.05.23"]
[WhiteClock "0:01:54"]
[BlackClock "0:00:52"]

1. e4 {[%clk 0:02:39]}  c6 {[%clk 0:02:55]} 2. d4 {[%clk 0:02:37]}  d5 {[%clk 0:02:55]} 3. e5 {[%clk 0:02:37]}  Bf5 {[%clk 0:02:55]} 4. Bd3 {[%clk 0:02:36]}  Bxd3 {[%clk 0:02:54]} 5. Qxd3 {[%clk 0:02:37]}  e6 {[%clk 0:02:55]} 6. Ne2 {[%clk 0:02:36]}  c5 {[%clk 0:02:54]} 7. c3 {[%clk 0:02:34]}  Qb6 {[%clk 0:02:54]} 8. O-O {[%clk 0:02:34]}  Nc6 {[%clk 0:02:47]} 9. Nd2 {[%clk 0:02:32]}  Rc8 {[%clk 0:02:45]} 10. Nf3 {[%clk 0:02:28]}  a6 {[%clk 0:02:23]} 11. Be3 {[%clk 0:02:24]}  cxd4 {[%clk 0:02:16]} 12. Nexd4 {[%clk 0:02:22]}  Bc5 {[%clk 0:02:14]} 13. a3 {[%clk 0:02:14]}  Bxd4 {[%clk 0:02:10]} 14. cxd4 {[%clk 0:02:15]}  Nge7 {[%clk 0:02:09]} 15. b4 {[%clk 0:02:14]}  h6 {[%clk 0:02:03]} 16. Rac1 {[%clk 0:02:10]}  O-O {[%clk 0:02:01]} 17. Qd2 {[%clk 0:02:05]}  Kh7 {[%clk 0:01:57]} 18. Rc3 {[%clk 0:02:04]}  Na7 {[%clk 0:01:55]} 19. Rfc1 {[%clk 0:02:02]}  Nb5 {[%clk 0:01:54]} 20. Rc5 {[%clk 0:02:02]}  Rc6 {[%clk 0:01:35]} 21. g4 {[%clk 0:01:59]}  Rxc5 {[%clk 0:00:55]} 22. Rxc5 {[%clk 0:01:56]}  Rc8 {[%clk 0:00:54]} 23. Rxc8 {[%clk 0:01:53]}  Nxc8 {[%clk 0:00:52]} 24. Qc2+ {[%clk 0:01:54]} 1-0


[Site "https://www.chess.com"]

[Event "Titled Tuesday Blitz May 23 Late 2023"]
[White "Przybylski, Wojciech"]
[Black "Hambleton, Aman"]
[WhiteFideId "1117599"]
[BlackFideId "2606577"]
[WhiteElo "2222"]
[BlackElo "2511"]
[Result "1-0"]
[Round "10"]
[TimeControl "180+2"]
[Date "2023.05.23"]
[WhiteClock "0:00:06"]
[BlackClock "0:00:02"]

1. e4 {[%clk 0:03:00]}  b6 {[%clk 0:02:57]} 2. d4 {[%clk 0:02:58]}  Bb7 {[%clk 0:02:57]} 3. Nc3 {[%clk 0:02:58]}  e6 {[%clk 0:02:55]} 4. Nf3 {[%clk 0:02:58]}  Bb4 {[%clk 0:02:55]} 5. Bd3 {[%clk 0:02:56]}  Nf6 {[%clk 0:02:56]} 6. Qe2 {[%clk 0:02:56]}  d5 {[%clk 0:02:56]} 7. e5 {[%clk 0:02:56]}  Ne4 {[%clk 0:02:56]} 8. O-O {[%clk 0:02:51]}  Nxc3 {[%clk 0:02:56]} 9. bxc3 {[%clk 0:02:50]}  Bxc3 {[%clk 0:02:57]} 10. Rb1 {[%clk 0:02:50]}  Nc6 {[%clk 0:02:57]} 11. Be3 {[%clk 0:02:49]}  h6 {[%clk 0:02:53]} 12. Rb3 {[%clk 0:02:47]}  Ba5 {[%clk 0:02:53]} 13. c3 {[%clk 0:02:46]}  Qd7 {[%clk 0:02:54]} 14. Rfb1 {[%clk 0:02:35]}  Ne7 {[%clk 0:02:54]} 15. Nd2 {[%clk 0:02:22]}  Bc6 {[%clk 0:02:34]} 16. Qg4 {[%clk 0:02:02]}  g6 {[%clk 0:02:34]} 17. h4 {[%clk 0:02:00]}  h5 {[%clk 0:02:21]} 18. Qg5 {[%clk 0:01:57]}  Nf5 {[%clk 0:02:22]} 19. Qf6 {[%clk 0:01:54]}  Rg8 {[%clk 0:02:22]} 20. Bg5 {[%clk 0:01:50]}  Qe7 {[%clk 0:02:17]} 21. f3 {[%clk 0:01:35]}  Qxf6 {[%clk 0:02:15]} 22. Bxf6 {[%clk 0:01:34]}  Nxd4 {[%clk 0:02:12]} 23. cxd4 {[%clk 0:01:33]}  Bxd2 {[%clk 0:02:13]} 24. Kf2 {[%clk 0:01:30]}  Kd7 {[%clk 0:01:50]} 25. Ke2 {[%clk 0:01:23]}  Bh6 {[%clk 0:01:29]} 26. g4 {[%clk 0:01:21]}  Bg7 {[%clk 0:01:19]} 27. Bg5 {[%clk 0:00:37]}  Rh8 {[%clk 0:01:18]} 28. Rc3 {[%clk 0:00:35]}  Bb7 {[%clk 0:01:18]} 29. Ke3 {[%clk 0:00:22]}  Bf8 {[%clk 0:01:12]} 30. Bf6 {[%clk 0:00:19]}  Rh7 {[%clk 0:01:00]} 31. Rbc1 {[%clk 0:00:09]}  c5 {[%clk 0:00:57]} 32. dxc5 {[%clk 0:00:06]}  bxc5 {[%clk 0:00:21]} 33. Rxc5 {[%clk 0:00:05]}  Bxc5+ {[%clk 0:00:15]} 34. Rxc5 {[%clk 0:00:06]}  Bc6 {[%clk 0:00:16]} 35. Kf4 {[%clk 0:00:03]}  Rb8 {[%clk 0:00:09]} 36. Ra5 {[%clk 0:00:03]}  Rb7 {[%clk 0:00:08]} 37. Kg5 {[%clk 0:00:03]}  Kc7 {[%clk 0:00:06]} 38. Ra6 {[%clk 0:00:03]}  Bd7 {[%clk 0:00:02]} 39. Ra5 {[%clk 0:00:03]}  Kb6 {[%clk 0:00:02]} 40. Ra3 {[%clk 0:00:03]}  Kc5 {[%clk 0:00:02]} 41. Kf4 {[%clk 0:00:04]}  Kd4 {[%clk 0:00:03]} 42. Be2 {[%clk 0:00:04]}  Kc5 {[%clk 0:00:02]} 43. Rc3+ {[%clk 0:00:04]}  Kb4 {[%clk 0:00:02]} 44. Rb3+ {[%clk 0:00:04]}  Kc5 {[%clk 0:00:02]} 45. Rxb7 {[%clk 0:00:05]}  Kc6 {[%clk 0:00:03]} 46. Rxa7 {[%clk 0:00:05]}  Bc8 {[%clk 0:00:03]} 47. Ra3 {[%clk 0:00:05]}  Bb7 {[%clk 0:00:03]} 48. Rc3+ {[%clk 0:00:06]}  Kb6 {[%clk 0:00:03]} 49. Rb3+ {[%clk 0:00:06]}  Kc6 {[%clk 0:00:03]} 50. a4 {[%clk 0:00:07]}  Bc8 {[%clk 0:00:03]} 51. Bb5+ {[%clk 0:00:07]}  Kc5 {[%clk 0:00:03]} 52. Be8 {[%clk 0:00:07]}  d4 {[%clk 0:00:02]} 53. Rb1 {[%clk 0:00:07]}  Ba6 {[%clk 0:00:02]} 54. Rc1+ {[%clk 0:00:08]}  Kb4 {[%clk 0:00:02]} 55. Rb1+ {[%clk 0:00:08]}  Kc3 {[%clk 0:00:02]} 56. Rc1+ {[%clk 0:00:08]}  Kb2 {[%clk 0:00:02]} 57. Rc6 {[%clk 0:00:08]}  Be2 {[%clk 0:00:02]} 58. Rd6 {[%clk 0:00:08]}  d3 {[%clk 0:00:02]} 59. Ke3 {[%clk 0:00:09]}  Kc3 {[%clk 0:00:02]} 60. g5 {[%clk 0:00:08]}  Kb4 {[%clk 0:00:01]} 61. Bb5 {[%clk 0:00:08]}  d2 {[%clk 0:00:01]} 62. Bxe2 {[%clk 0:00:08]}  Kxa4 {[%clk 0:00:01]} 63. Kxd2 {[%clk 0:00:08]}  Kb4 {[%clk 0:00:02]} 64. Rd4+ {[%clk 0:00:08]}  Kc5 {[%clk 0:00:02]} 65. Rd3 {[%clk 0:00:08]}  Kc6 {[%clk 0:00:02]} 66. Kc3 {[%clk 0:00:08]}  Kc5 {[%clk 0:00:02]} 67. Kb3 {[%clk 0:00:08]}  Kc6 {[%clk 0:00:03]} 68. Kc4 {[%clk 0:00:08]}  Kb6 {[%clk 0:00:03]} 69. Rd6+ {[%clk 0:00:08]}  Kc7 {[%clk 0:00:03]} 70. Kc5 {[%clk 0:00:08]}  Kb7 {[%clk 0:00:03]} 71. Rd7+ {[%clk 0:00:07]}  Kc8 {[%clk 0:00:03]} 72. Re7 {[%clk 0:00:06]}  Kb8 {[%clk 0:00:02]} 73. Kc6 {[%clk 0:00:06]}  Ka8 {[%clk 0:00:02]} 74. Bd3 {[%clk 0:00:06]}  Kb8 {[%clk 0:00:02]} 75. Ba6 {[%clk 0:00:06]}  Ka8 {[%clk 0:00:03]} 76. Kb6 {[%clk 0:00:07]}  Rh8 {[%clk 0:00:02]} 77. Bxh8 {[%clk 0:00:06]}  f5 {[%clk 0:00:02]} 78. exf6 {[%clk 0:00:06]}  e5 {[%clk 0:00:02]} 79. Re8# {[%clk 0:00:06]} 1-0


[Site "https://www.chess.com"]

[Event "Titled Tuesday Blitz May 23 Late 2023"]
[White "Bryakin, Mikhail"]
[Black "Ollier, Pablo"]
[WhiteFideId "4165314"]
[BlackFideId "652318"]
[WhiteElo "2467"]
[BlackElo "2568"]
[Result "0-1"]
[Round "10"]
[TimeControl "180+2"]
[Date "2023.05.23"]
[WhiteClock "0:00:00"]
[BlackClock "0:00:02"]

1. e4 {[%clk 0:03:00]}  e5 {[%clk 0:02:58]} 2. Nf3 {[%clk 0:03:00]}  Nc6 {[%clk 0:02:57]} 3. Bc4 {[%clk 0:02:59]}  Nf6 {[%clk 0:02:57]} 4. Nc3 {[%clk 0:02:47]}  Nxe4 {[%clk 0:02:57]} 5. Bxf7+ {[%clk 0:02:35]}  Kxf7 {[%clk 0:02:57]} 6. Nxe4 {[%clk 0:02:35]}  d5 {[%clk 0:02:57]} 7. Ng3 {[%clk 0:02:34]}  e4 {[%clk 0:02:52]} 8. Ng1 {[%clk 0:02:33]}  Bc5 {[%clk 0:02:45]} 9. N1e2 {[%clk 0:02:27]}  Rf8 {[%clk 0:02:41]} 10. d4 {[%clk 0:02:24]}  exd3 {[%clk 0:02:35]} 11. cxd3 {[%clk 0:02:18]}  Qf6 {[%clk 0:02:27]} 12. O-O {[%clk 0:02:12]}  Kg8 {[%clk 0:02:27]} 13. Be3 {[%clk 0:01:54]}  Bd6 {[%clk 0:02:01]} 14. d4 {[%clk 0:01:50]}  Bg4 {[%clk 0:01:59]} 15. Qc2 {[%clk 0:01:40]}  Rae8 {[%clk 0:01:56]} 16. Nc3 {[%clk 0:01:22]}  Ne7 {[%clk 0:01:25]} 17. Qb3 {[%clk 0:01:16]}  c6 {[%clk 0:01:05]} 18. Nce4 {[%clk 0:01:08]}  Qg6 {[%clk 0:01:00]} 19. Nxd6 {[%clk 0:01:07]}  Qxd6 {[%clk 0:01:01]} 20. Qxb7 {[%clk 0:01:05]}  Nf5 {[%clk 0:00:42]} 21. Rac1 {[%clk 0:00:38]}  Re6 {[%clk 0:00:20]} 22. Bd2 {[%clk 0:00:21]}  h6 {[%clk 0:00:20]} 23. Bb4 {[%clk 0:00:20]}  Rb8 {[%clk 0:00:19]} 24. Bxd6 {[%clk 0:00:16]}  Rxb7 {[%clk 0:00:20]} 25. Ba3 {[%clk 0:00:16]}  Nxd4 {[%clk 0:00:20]} 26. Rfe1 {[%clk 0:00:15]}  Kf7 {[%clk 0:00:16]} 27. f3 {[%clk 0:00:12]}  Rxe1+ {[%clk 0:00:14]} 28. Rxe1 {[%clk 0:00:11]}  Be6 {[%clk 0:00:14]} 29. Rd1 {[%clk 0:00:10]}  Nf5 {[%clk 0:00:13]} 30. Ne2 {[%clk 0:00:09]}  Ne3 {[%clk 0:00:09]} 31. Rc1 {[%clk 0:00:10]}  Nc4 {[%clk 0:00:09]} 32. Nd4 {[%clk 0:00:07]}  Bd7 {[%clk 0:00:10]} 33. Bc5 {[%clk 0:00:06]}  Ne5 {[%clk 0:00:08]} 34. b3 {[%clk 0:00:05]}  Nd3 {[%clk 0:00:08]} 35. Rc3 {[%clk 0:00:05]}  Nf4 {[%clk 0:00:06]} 36. Ba3 {[%clk 0:00:04]}  Rb6 {[%clk 0:00:05]} 37. Kf2 {[%clk 0:00:04]}  Ra6 {[%clk 0:00:05]} 38. g3 {[%clk 0:00:05]}  Rxa3 {[%clk 0:00:05]} 39. gxf4 {[%clk 0:00:05]}  Rxa2+ {[%clk 0:00:06]} 40. Kg3 {[%clk 0:00:04]}  Rb2 {[%clk 0:00:06]} 41. Nxc6 {[%clk 0:00:04]}  Bxc6 {[%clk 0:00:06]} 42. Rxc6 {[%clk 0:00:05]}  Rxb3 {[%clk 0:00:07]} 43. Rc7+ {[%clk 0:00:06]}  Kf6 {[%clk 0:00:06]} 44. Rxa7 {[%clk 0:00:07]}  Rb2 {[%clk 0:00:01]} 45. Rd7 {[%clk 0:00:04]}  Rd2 {[%clk 0:00:02]} 46. f5 {[%clk 0:00:01]}  Rd1 {[%clk 0:00:01]} 47. Kf4 {[%clk 0:00:00]}  d4 {[%clk 0:00:02]} 0-1


[Site "https://www.chess.com"]

[Event "Titled Tuesday Blitz May 23 Late 2023"]
[White "Safin, Robert"]
[Black "Pakleza, Zbigniew"]
[WhiteFideId "34189120"]
[BlackFideId "1119290"]
[WhiteElo "2295"]
[BlackElo "2410"]
[Result "0-1"]
[Round "10"]
[TimeControl "180+2"]
[Date "2023.05.23"]
[WhiteClock "0:00:24"]
[BlackClock "0:00:20"]

1. e4 {[%clk 0:03:00]}  d6 {[%clk 0:02:57]} 2. d4 {[%clk 0:03:00]}  Nf6 {[%clk 0:02:58]} 3. Nc3 {[%clk 0:03:00]}  c6 {[%clk 0:02:59]} 4. Nge2 {[%clk 0:03:00]}  b5 {[%clk 0:02:59]} 5. a3 {[%clk 0:02:57]}  e5 {[%clk 0:02:59]} 6. g3 {[%clk 0:02:57]}  Nbd7 {[%clk 0:02:59]} 7. Bg2 {[%clk 0:02:57]}  Be7 {[%clk 0:02:59]} 8. O-O {[%clk 0:02:57]}  Bb7 {[%clk 0:02:58]} 9. h3 {[%clk 0:02:56]}  a5 {[%clk 0:02:56]} 10. Be3 {[%clk 0:02:54]}  O-O {[%clk 0:02:55]} 11. Qd2 {[%clk 0:02:50]}  Re8 {[%clk 0:02:54]} 12. f4 {[%clk 0:02:32]}  b4 {[%clk 0:02:51]} 13. Nd1 {[%clk 0:02:32]}  bxa3 {[%clk 0:02:47]} 14. bxa3 {[%clk 0:02:32]}  exd4 {[%clk 0:02:44]} 15. Nxd4 {[%clk 0:01:44]}  c5 {[%clk 0:02:43]} 16. Nf5 {[%clk 0:01:45]}  Nxe4 {[%clk 0:02:35]} 17. Qd3 {[%clk 0:01:44]}  Bf6 {[%clk 0:02:01]} 18. Rb1 {[%clk 0:01:42]}  c4 {[%clk 0:02:01]} 19. Qxc4 {[%clk 0:01:31]}  Ba6 {[%clk 0:01:59]} 20. Qd5 {[%clk 0:01:17]}  Bxf1 {[%clk 0:01:15]} 21. Kxf1 {[%clk 0:01:17]}  Ndc5 {[%clk 0:01:01]} 22. Bxc5 {[%clk 0:01:14]}  Nxc5 {[%clk 0:00:32]} 23. Qxa8 {[%clk 0:01:10]}  Qxa8 {[%clk 0:00:32]} 24. Bxa8 {[%clk 0:01:09]}  Rxa8 {[%clk 0:00:33]} 25. Nde3 {[%clk 0:00:49]}  Ne4 {[%clk 0:00:22]} 26. Nd5 {[%clk 0:00:24]}  Nd2+ {[%clk 0:00:20]} 0-1


[Site "https://www.chess.com"]

[Event "Titled Tuesday Blitz May 23 Late 2023"]
[White "Amburgy, Ryan"]
[Black "Haszon, David"]
[WhiteFideId "30924820"]
[BlackFideId "733610"]
[WhiteElo "2134"]
[BlackElo "2210"]
[Result "1-0"]
[Round "10"]
[TimeControl "180+2"]
[Date "2023.05.23"]
[WhiteClock "0:00:13"]
[BlackClock "0:00:10"]

1. d4 {[%clk 0:03:00]}  Nf6 {[%clk 0:02:59]} 2. c4 {[%clk 0:03:01]}  c5 {[%clk 0:03:00]} 3. d5 {[%clk 0:03:01]}  b5 {[%clk 0:03:00]} 4. cxb5 {[%clk 0:03:02]}  a6 {[%clk 0:03:01]} 5. e3 {[%clk 0:03:02]}  g6 {[%clk 0:02:59]} 6. Nc3 {[%clk 0:03:02]}  d6 {[%clk 0:02:56]} 7. e4 {[%clk 0:03:03]}  Bg7 {[%clk 0:02:55]} 8. a4 {[%clk 0:03:03]}  O-O {[%clk 0:02:54]} 9. Nf3 {[%clk 0:03:03]}  axb5 {[%clk 0:02:44]} 10. Bxb5 {[%clk 0:03:03]}  Bd7 {[%clk 0:02:42]} 11. Bd3 {[%clk 0:02:44]}  Qa5 {[%clk 0:02:38]} 12. O-O {[%clk 0:02:43]}  Qb4 {[%clk 0:02:34]} 13. Bd2 {[%clk 0:02:27]}  c4 {[%clk 0:02:19]} 14. Bc2 {[%clk 0:02:05]}  Qxb2 {[%clk 0:02:11]} 15. Rb1 {[%clk 0:02:06]}  Qa3 {[%clk 0:02:11]} 16. Nb5 {[%clk 0:02:06]}  Qc5 {[%clk 0:01:50]} 17. Be3 {[%clk 0:02:03]}  Qc8 {[%clk 0:01:47]} 18. Qe2 {[%clk 0:01:52]}  Bxb5 {[%clk 0:01:28]} 19. Rxb5 {[%clk 0:01:43]}  Nbd7 {[%clk 0:01:22]} 20. Nd2 {[%clk 0:01:18]}  c3 {[%clk 0:01:12]} 21. Nc4 {[%clk 0:01:19]}  h5 {[%clk 0:01:00]} 22. h3 {[%clk 0:01:17]}  Ne8 {[%clk 0:00:51]} 23. Rfb1 {[%clk 0:01:09]}  Nc7 {[%clk 0:00:51]} 24. Rb7 {[%clk 0:01:09]}  Na6 {[%clk 0:00:45]} 25. Na5 {[%clk 0:00:54]}  Ne5 {[%clk 0:00:29]} 26. f4 {[%clk 0:00:30]}  Nd7 {[%clk 0:00:29]} 27. Nc6 {[%clk 0:00:28]}  Re8 {[%clk 0:00:28]} 28. Qc4 {[%clk 0:00:20]}  Nac5 {[%clk 0:00:25]} 29. R7b5 {[%clk 0:00:20]}  Kh7 {[%clk 0:00:17]} 30. a5 {[%clk 0:00:13]}  e6 {[%clk 0:00:17]} 31. dxe6 {[%clk 0:00:11]}  Rxe6 {[%clk 0:00:16]} 32. Nd4 {[%clk 0:00:11]}  Re7 {[%clk 0:00:14]} 33. Qd5 {[%clk 0:00:08]}  Rb8 {[%clk 0:00:12]} 34. Qxd6 {[%clk 0:00:07]}  Re8 {[%clk 0:00:09]} 35. Rxb8 {[%clk 0:00:07]}  Nxb8 {[%clk 0:00:09]} 36. Nb5 {[%clk 0:00:05]}  Nxe4 {[%clk 0:00:07]} 37. Qc7 {[%clk 0:00:05]}  Qxc7 {[%clk 0:00:06]} 38. Nxc7 {[%clk 0:00:06]}  Rc8 {[%clk 0:00:06]} 39. Nd5 {[%clk 0:00:06]}  Nd2 {[%clk 0:00:07]} 40. Rb7 {[%clk 0:00:06]}  Nc6 {[%clk 0:00:07]} 41. a6 {[%clk 0:00:05]}  Kg8 {[%clk 0:00:06]} 42. a7 {[%clk 0:00:03]}  Nxa7 {[%clk 0:00:06]} 43. Rxa7 {[%clk 0:00:03]}  Nc4 {[%clk 0:00:07]} 44. Bf2 {[%clk 0:00:03]}  Bf8 {[%clk 0:00:05]} 45. Ne7+ {[%clk 0:00:03]}  Bxe7 {[%clk 0:00:05]} 46. Rxe7 {[%clk 0:00:04]}  Na3 {[%clk 0:00:05]} 47. Re2 {[%clk 0:00:05]}  Rb8 {[%clk 0:00:05]} 48. Bd4 {[%clk 0:00:05]}  Rb2 {[%clk 0:00:05]} 49. Bd3 {[%clk 0:00:06]}  Rb3 {[%clk 0:00:03]} 50. Be4 {[%clk 0:00:03]}  Nb5 {[%clk 0:00:02]} 51. Be5 {[%clk 0:00:03]}  f6 {[%clk 0:00:02]} 52. Bxf6 {[%clk 0:00:03]}  Kf7 {[%clk 0:00:03]} 53. Be5 {[%clk 0:00:04]}  Rb4 {[%clk 0:00:03]} 54. Bd5+ {[%clk 0:00:04]}  Ke7 {[%clk 0:00:03]} 55. Rc2 {[%clk 0:00:04]}  Rb1+ {[%clk 0:00:02]} 56. Kf2 {[%clk 0:00:04]}  Rd1 {[%clk 0:00:03]} 57. Bc4 {[%clk 0:00:04]}  Na3 {[%clk 0:00:03]} 58. Rxc3 {[%clk 0:00:04]}  Nxc4 {[%clk 0:00:03]} 59. Rxc4 {[%clk 0:00:05]}  Rd2+ {[%clk 0:00:04]} 60. Kf3 {[%clk 0:00:06]}  Ke6 {[%clk 0:00:04]} 61. Rc6+ {[%clk 0:00:06]}  Kf7 {[%clk 0:00:05]} 62. Rc7+ {[%clk 0:00:06]}  Ke6 {[%clk 0:00:05]} 63. Rg7 {[%clk 0:00:06]}  Kf5 {[%clk 0:00:05]} 64. Rf7+ {[%clk 0:00:07]}  Ke6 {[%clk 0:00:06]} 65. Rf6+ {[%clk 0:00:08]}  Kd5 {[%clk 0:00:06]} 66. Rxg6 {[%clk 0:00:09]}  Rd3+ {[%clk 0:00:07]} 67. Kf2 {[%clk 0:00:09]}  Rd2+ {[%clk 0:00:08]} 68. Kg1 {[%clk 0:00:10]}  Ke4 {[%clk 0:00:08]} 69. Kh2 {[%clk 0:00:10]}  Kf5 {[%clk 0:00:09]} 70. Rg5+ {[%clk 0:00:10]}  Ke4 {[%clk 0:00:09]} 71. Rxh5 {[%clk 0:00:10]}  Ke3 {[%clk 0:00:09]} 72. Rg5 {[%clk 0:00:11]}  Ke4 {[%clk 0:00:10]} 73. h4 {[%clk 0:00:11]}  Rd7 {[%clk 0:00:10]} 74. h5 {[%clk 0:00:12]}  Rh7 {[%clk 0:00:10]} 75. Kh3 {[%clk 0:00:12]}  Ke3 {[%clk 0:00:11]} 76. Kh4 {[%clk 0:00:13]}  Ke4 {[%clk 0:00:11]} 77. Rg6 {[%clk 0:00:12]}  Kf5 {[%clk 0:00:12]} 78. Rf6+ {[%clk 0:00:12]}  Ke4 {[%clk 0:00:12]} 79. h6 {[%clk 0:00:12]}  Kd5 {[%clk 0:00:10]} 80. Kh5 {[%clk 0:00:13]} 1-0


[Site "https://www.chess.com"]